fUSD/lending_fUSD_20250616
["ID","MTS","AMOUNT","RATE_DAILY","PERIOD"]
[366058023,1750039841556,-490.0,0.00016438,2]
[366058024,1750039841565,-491.73065795,0.00016438,2]
[366058025,1750039841574,-495.3365194,0.00016438,2]
[366058026,1750039841584,-492.70891831,0.00016438,2]
[366058027,1750039841593,-490.0,0.00016438,2]
[366058028,1750039841602,-1507.45,0.00016438,2]
[366058029,1750039841612,-490.0,0.00016438,2]
[366058030,1750039841622,-509.8280757,0.00016438,2]
[366058031,1750039841632,-490.0,0.00016438,2]
[366058032,1750039841641,-490.0,0.00016438,2]
[366058033,1750039841652,-495.31920549,0.00016438,2]
[366058034,1750039841662,-1677.16,0.00016438,2]
[366058035,1750039841672,-500.0,0.00016438,2]
[366058036,1750039841682,-500.0,0.00016438,2]
[366058037,1750039841811,-500.0,0.00016438,2]
[366058038,1750039841822,-500.0,0.00016438,2]
[366058039,1750039841832,-1096.48,0.00016438,2]
[366058040,1750039841841,-640.66,0.00016438,2]
[366058041,1750039841851,-490.0,0.00016438,2]
[366058042,1750039841860,-800.3,0.00016438,2]
[366058043,1750039841869,-790.52,0.00016438,2]
[366058044,1750039841880,-490.0,0.00016438,2]
[366058045,1750039841890,-767.82,0.00016438,2]
[366058046,1750039841900,-490.0,0.00016438,2]
[366058047,1750039841909,-490.81,0.00016438,2]
[366058048,1750039841919,-490.0,0.00016438,2]
[366058049,1750039841929,-490.0,0.00016438,2]
[366058050,1750039841939,-1694.3,0.00016438,2]
[366058051,1750039841949,-796.51,0.00016438,2]
[366058052,1750039841959,-490.0,0.00016438,2]
[366058053,1750039841970,-492.30277084,0.00016438,2]
[366058054,1750039841980,-769.81,0.00016438,2]
[366058055,1750039841990,-494.96482603,0.00016438,2]
[366058056,1750039841999,-490.0,0.00016438,2]
[366058057,1750039842008,-495.34642172,0.00016438,2]
[366058058,1750039842018,-490.0,0.00016438,2]
[366058059,1750039842028,-494.05734832,0.00016438,2]
[366058060,1750039842038,-488.82458474,0.00016438,2]
[366058061,1750039842048,-492.95505936,0.00016438,2]
[366058062,1750039842058,-471.39306888,0.00016438,2]
[366058063,1750039842069,-637.27,0.00016438,2]
[366058064,1750039842080,-490.0,0.00016438,2]
[366058065,1750039842091,-1457.66,0.00016438,2]
[366058066,1750039842102,-496.34203918,0.00016438,2]
[366058067,1750039842112,-650.74,0.00016438,2]
[366058068,1750039842122,-1703.98,0.00016438,2]
[366058069,1750039842132,-170.12385207,0.00016438,2]
[366058070,1750039842143,-490.0,0.00016438,2]
[366058071,1750039842154,-1292.63,0.00016438,2]
[366058072,1750039842163,-661.53,0.00016438,2]
[366058073,1750039842173,-499.52003681,0.00016438,2]
[366058074,1750039842182,-648.5,0.00016438,2]
[366058075,1750039842192,-490.0,0.00016438,2]
[366058076,1750039842202,-732.24,0.00016438,2]
[366058077,1750039842212,-490.0,0.00016438,2]
[366058078,1750039842223,-490.0,0.00016438,2]
[366058079,1750039842233,-2011.73,0.00016438,2]
[366058080,1750039842242,-623.63,0.00016438,2]
[366058081,1750039842252,-482.85830447,0.00016438,2]
[366058082,1750039842261,-490.0,0.00016438,2]
[366058083,1750039842271,-499.90895304,0.00016438,2]
[366058084,1750039842280,-946.0,0.00016438,2]
[366058085,1750039842290,-492.39604357,0.00016438,2]
[366058086,1750039842299,-490.0,0.00016438,2]
[366058087,1750039842309,-490.0,0.00016438,2]
[366058088,1750039842318,-753.76,0.00016438,2]
[366058089,1750039842328,-490.0,0.00016438,2]
[366058090,1750039842337,-490.0,0.00016438,2]
[366058091,1750039842347,-494.14761782,0.00016438,2]
[366058092,1750039842356,-490.0,0.00016438,2]
[366058093,1750039842366,-494.39771913,0.00016438,2]
[366058094,1750039842375,-490.0,0.00016438,2]
[366058095,1750039842385,-490.0,0.00016438,2]
[366058096,1750039842394,-1298.07,0.00016438,2]
[366058097,1750039842404,-490.0,0.00016438,2]
[366058098,1750039842414,-466.07498801,0.00016438,2]
[366058099,1750039842423,-2292.72,0.00016438,2]
[366058100,1750039842433,-490.0,0.00016438,2]
[366058101,1750039842443,-490.0,0.00016438,2]
[366058102,1750039842453,-490.0,0.00016438,2]
[366058103,1750039842463,-508.1949713,0.00016438,2]
[366058104,1750039842473,-1697.85,0.00016438,2]
[366058105,1750039842482,-590.87,0.00016438,2]
[366058106,1750039842492,-490.0,0.00016438,2]
[366058107,1750039842501,-490.0,0.00016438,2]
[366058108,1750039842511,-490.0,0.00016438,2]
[366058109,1750039842521,-490.0,0.00016438,2]
[366058110,1750039842530,-490.0,0.00016438,2]
[366058111,1750039842541,-748.85,0.00016438,2]
[366058112,1750039842551,-490.0,0.00016438,2]
[366058113,1750039842561,-1512.48,0.00016438,2]
[366058114,1750039842570,-500.0,0.00016438,2]
[366058115,1750039842580,-500.0,0.00016438,2]
[366058116,1750039842589,-500.0,0.00016438,2]
[366058117,1750039842599,-500.0,0.00016438,2]
[366058118,1750039842608,-493.52014018,0.00016438,2]
[366058119,1750039842618,-710.9,0.00016438,2]
[366058120,1750039842628,-1247.81,0.00016438,2]
[366058121,1750039842637,-490.0,0.00016438,2]
[366058122,1750039842646,-490.0,0.00016438,2]
[366058123,1750039842656,-490.0,0.00016438,2]
[366058124,1750039842665,-789.62,0.00016438,2]
[366058125,1750039842675,-490.0,0.00016438,2]
[366058126,1750039842684,-785.35,0.00016438,2]
[366058127,1750039842694,-324.33292876,0.00016438,2]
[366058128,1750039842703,-492.16599123,0.00016438,2]
[366058129,1750039842713,-158.41159934,0.00016438,2]
[366058130,1750039842723,-490.0,0.00016438,2]
[366058131,1750039842732,-496.23969559,0.00016438,2]
[366058132,1750039842746,-490.0,0.00016438,2]
[366058133,1750039842755,-2162.41,0.00016438,2]
[366058134,1750039842765,-1301.17,0.00016438,2]
[366058135,1750039842775,-503.78278697,0.00016438,2]
[366058136,1750039842787,-621.14,0.00016438,2]
[366058137,1750039842796,-490.0,0.00016438,2]
[366058138,1750039842805,-490.0,0.00016438,2]
[366058140,1750039842817,-491.99752988,0.00016438,2]
[366058141,1750039842826,-891.06,0.00016438,2]
[366058142,1750039842836,-1582.43,0.00016438,2]
[366058143,1750039842846,-498.71832799,0.00016438,2]
[366058144,1750039842856,-210.0,0.00016438,2]
[366058145,1750039842866,-492.06929683,0.00016438,2]
[366058146,1750039842877,-490.0,0.00016438,2]
[366058147,1750039842886,-490.0,0.00016438,2]
[366058148,1750039842896,-682.57,0.00016438,2]
[366058149,1750039842907,-490.0,0.00016438,2]
[366058150,1750039842917,-490.0,0.00016438,2]
[366058151,1750039842927,-397.81115585,0.00016438,2]
[366058152,1750039842936,-943.32,0.00016438,2]
[366058153,1750039842948,-494.59063002,0.00016438,2]
[366058154,1750039842957,-1429.43,0.00016438,2]
[366058155,1750039842967,-530.50467146,0.00016438,2]
[366058156,1750039842978,-795.74,0.00016438,2]
[366058157,1750039842987,-490.0,0.00016438,2]
[366058158,1750039842997,-492.98973163,0.00016438,2]
[366058159,1750039843008,-490.0,0.00016438,2]
[366058160,1750039843019,-490.0,0.00016438,2]
[366058161,1750039843030,-490.0,0.00016438,2]
[366058162,1750039843041,-427.8416371,0.00016438,2]
[366058163,1750039843051,-490.0,0.00016438,2]
[366058164,1750039843061,-496.48919933,0.00016438,2]
[366058165,1750039843070,-422.05225712,0.00016438,2]
[366058166,1750039843080,-490.0,0.00016438,2]
[366058167,1750039843089,-490.0,0.00016438,2]
[366058168,1750039843099,-490.0,0.00016438,2]
[366058169,1750039843108,-490.0,0.00016438,2]
[366058170,1750039843118,-490.0,0.00016438,2]
[366058171,1750039843128,-490.0,0.00016438,2]
[366058172,1750039843137,-490.42353218,0.00016438,2]
[366058173,1750039843147,-490.0,0.00016438,2]
[366058174,1750039843156,-490.0,0.00016438,2]
[366058175,1750039843165,-490.0,0.00016438,2]
[366058176,1750039843174,-1079.68,0.00016438,2]
[366058177,1750039843183,-490.0,0.00016438,2]
[366058178,1750039843192,-791.97,0.00016438,2]
[366058179,1750039843201,-490.44696029,0.00016438,2]
[366058180,1750039843210,-490.0,0.00016438,2]
[366058181,1750039843220,-490.0,0.00016438,2]
[366058182,1750039843229,-563.99,0.00016438,2]
[366058183,1750039843239,-492.28654871,0.00016438,2]
[366058184,1750039843248,-490.0,0.00016438,2]
[366058186,1750039843257,-2230.73,0.00016438,2]
[366058187,1750039843267,-490.0,0.00016438,2]
[366058188,1750039843276,-1040.23,0.00016438,2]
[366058189,1750039843287,-513.33,0.00016438,2]
[366058190,1750039843296,-490.0,0.00016438,2]
[366058191,1750039843305,-490.0,0.00016438,2]
[366058192,1750039843315,-494.40490156,0.00016438,2]
[366058193,1750039843325,-1476.99,0.00016438,2]
[366058195,1750039843334,-315.62313998,0.00016438,2]
[366058196,1750039843343,-490.0,0.00016438,2]
[366058197,1750039843353,-490.0,0.00016438,2]
[366058198,1750039843363,-490.0,0.00016438,2]
[366058199,1750039843372,-2685.2,0.00016438,2]
[366058200,1750039843382,-490.0,0.00016438,2]
[366058201,1750039843391,-490.0,0.00016438,2]
[366058202,1750039843401,-491.78843423,0.00016438,2]
[366058203,1750039843410,-490.0,0.00016438,2]
[366058204,1750039843419,-491.5865919,0.00016438,2]
[366058205,1750039843429,-590.35,0.00016438,2]
[366058206,1750039843440,-503.79411564,0.00016438,2]
[366058207,1750039843449,-490.0,0.00016438,2]
[366058208,1750039843458,-1386.03,0.00016438,2]
[366058209,1750039843467,-483.2988675,0.00016438,2]
[366058210,1750039843477,-491.18957131,0.00016438,2]
[366058211,1750039843487,-1526.57,0.00016438,2]
[366058212,1750039843496,-499.48824707,0.00016438,2]
[366058213,1750039843506,-675.02,0.00016438,2]
[366058214,1750039843515,-490.0,0.00016438,2]
[366058215,1750039843525,-490.0,0.00016438,2]
[366058216,1750039843534,-1247.49,0.00016438,2]
[366058217,1750039843544,-983.91,0.00016438,2]
[366058218,1750039843553,-490.0,0.00016438,2]
[366058219,1750039843563,-490.0,0.00016438,2]
[366058220,1750039843572,-491.45293837,0.00016438,2]
[366058221,1750039843581,-490.0,0.00016438,2]
[366058222,1750039843590,-490.0,0.00016438,2]
[366058223,1750039843599,-570.02,0.00016438,2]
[366058224,1750039843609,-1864.91,0.00016438,2]
[366058225,1750039843618,-614.08852907,0.00016438,2]
[366058226,1750039843627,-528.24,0.00016438,2]
[366058227,1750039843636,-490.0,0.00016438,2]
[366058228,1750039843645,-490.0,0.00016438,2]
[366058229,1750039843655,-490.0,0.00016438,2]
[366058230,1750039843665,-493.27370035,0.00016438,2]
[366058231,1750039843674,-490.0,0.00016438,2]
[366058232,1750039843684,-529.38,0.00016438,2]
[366058233,1750039843693,-490.0,0.00016438,2]
[366058234,1750039843702,-488.94179837,0.00016438,2]
[366058235,1750039843711,-493.01834514,0.00016438,2]
[366058236,1750039843720,-603.81324061,0.00016438,2]
[366058237,1750039843730,-490.0,0.00016438,2]
[366058238,1750039843741,-490.0,0.00016438,2]
[366058239,1750039843751,-490.0,0.00016438,2]
[366058240,1750039843760,-490.0,0.00016438,2]
[366058241,1750039843769,-490.0,0.00016438,2]
[366058242,1750039843779,-761.2,0.00016438,2]
[366058243,1750039843788,-584.91,0.00016438,2]
[366058244,1750039843797,-390.0,0.00016438,2]
[366058245,1750039843807,-705.66,0.00016438,2]
[366058246,1750039843818,-490.0,0.00016438,2]
[366058247,1750039843828,-490.0,0.00016438,2]
[366058248,1750039843837,-490.0,0.00016438,2]
[366058249,1750039843847,-490.0,0.00016438,2]
[366058250,1750039843857,-1227.02,0.00016438,2]
[366058251,1750039843867,-767.99,0.00016438,2]
[366058252,1750039843877,-490.0,0.00016438,2]
[366058253,1750039843886,-828.06,0.00016438,2]
[366058254,1750039843896,-490.0,0.00016438,2]
[366058255,1750039843905,-496.27368078,0.00016438,2]
[366058256,1750039843915,-490.44183243,0.00016438,2]
[366058257,1750039843925,-490.0,0.00016438,2]
[366058258,1750039843935,-490.0,0.00016438,2]
[366058259,1750039843944,-490.0,0.00016438,2]
[366058260,1750039843953,-490.0,0.00016438,2]
[366058261,1750039843963,-494.35591029,0.00016438,2]
[366058262,1750039843972,-490.0,0.00016438,2]
[366058263,1750039843982,-550.89,0.00016438,2]
[366058264,1750039843991,-492.35178912,0.00016438,2]
[366058265,1750039844002,-500.0,0.00016438,2]
[366058266,1750039844011,-506.3383071,0.00016438,2]
[366058267,1750039844021,-490.0,0.00016438,2]
[366058268,1750039844030,-490.0,0.00016438,2]
[366058269,1750039844041,-2673.99,0.00016438,2]
[366058270,1750039844051,-497.1920181,0.00016438,2]
[366058271,1750039844060,-576.27,0.00016438,2]
[366058272,1750039844070,-496.31284511,0.00016438,2]
[366058273,1750039844080,-490.0,0.00016438,2]
[366058274,1750039844090,-502.78743232,0.00016438,2]
[366058275,1750039844099,-729.28,0.00016438,2]
[366058276,1750039844108,-493.30196648,0.00016438,2]
[366058277,1750039844118,-507.99,0.00016438,2]
[366058278,1750039844128,-490.0,0.00016438,2]
[366058279,1750039844138,-212.54894843,0.00016438,2]
[366058280,1750039844147,-494.57989517,0.00016438,2]
[366058281,1750039844157,-490.0,0.00016438,2]
[366058282,1750039844167,-490.86857263,0.00016438,2]
[366058283,1750039844176,-544.49,0.00016438,2]
[366058284,1750039844186,-2031.3,0.00016438,2]
[366058285,1750039844195,-2193.81,0.00016438,2]
[366058286,1750039844204,-490.0,0.00016438,2]
[366058287,1750039844213,-490.0,0.00016438,2]
[366058288,1750039844223,-1908.24,0.00016438,2]
[366058289,1750039844232,-490.0,0.00016438,2]
[366058290,1750039844241,-490.0,0.00016438,2]
[366058291,1750039844251,-491.26307029,0.00016438,2]
[366058292,1750039844260,-683.52,0.00016438,2]
[366058293,1750039844269,-495.37282596,0.00016438,2]
[366058294,1750039844278,-1211.92,0.00016438,2]
[366058295,1750039844288,-490.0,0.00016438,2]
[366058296,1750039844297,-500.06585854,0.00016438,2]
[366058297,1750039844307,-490.0,0.00016438,2]
[366058298,1750039844316,-490.0,0.00016438,2]
[366058299,1750039844325,-490.0,0.00016438,2]
[366058300,1750039844335,-490.0,0.00016438,2]
[366058301,1750039844346,-620.15,0.00016438,2]
[366058302,1750039844356,-1354.54,0.00016438,2]
[366058303,1750039844365,-587.35,0.00016438,2]
[366058304,1750039844374,-492.34813118,0.00016438,2]
[366058305,1750039844383,-490.0,0.00016438,2]
[366058306,1750039844393,-490.0,0.00016438,2]
[366058307,1750039844402,-491.72315563,0.00016438,2]
[366058308,1750039844411,-490.0,0.00016438,2]
[366058309,1750039844420,-2243.43,0.00016438,2]
[366058310,1750039844431,-490.0,0.00016438,2]
[366058311,1750039844441,-809.94,0.00016438,2]
[366058312,1750039844451,-3032.62,0.00016438,2]
[366058313,1750039844461,-490.0,0.00016438,2]
[366058314,1750039844470,-490.0,0.00016438,2]
[366058315,1750039844480,-491.48571085,0.00016438,2]
[366058316,1750039844489,-490.0,0.00016438,2]
[366058317,1750039844498,-646.31,0.00016438,2]
[366058318,1750039844507,-593.68,0.00016438,2]
[366058319,1750039844516,-491.9384979,0.00016438,2]
[366058320,1750039844525,-275.77869309,0.00016438,2]
[366058321,1750039844535,-544.31,0.00016438,2]
[366058322,1750039844544,-804.06,0.00016438,2]
[366058323,1750039844553,-267.90523209,0.00016438,2]
[366058324,1750039844562,-490.0,0.00016438,2]
[366058325,1750039844572,-1410.31,0.00016438,2]
[366058326,1750039844581,-490.0,0.00016438,2]
[366058327,1750039844590,-1600.96,0.00016438,2]
[366058328,1750039844599,-490.0,0.00016438,2]
[366058329,1750039844609,-490.0,0.00016438,2]
[366058330,1750039844618,-494.31956412,0.00016438,2]
[366058331,1750039844627,-510.01,0.00016438,2]
[366058332,1750039844637,-486.53328804,0.00016438,2]
[366058333,1750039844647,-490.0,0.00016438,2]
[366058334,1750039844656,-496.63,0.00016438,2]
[366058335,1750039844665,-490.0,0.00016438,2]
[366058336,1750039844675,-500.0,0.00016438,2]
[366058337,1750039844684,-497.04227004,0.00016438,2]
[366058338,1750039844693,-500.0,0.00016438,2]
[366058339,1750039844703,-500.0,0.00016438,2]
[366058340,1750039844712,-736.8,0.00016438,2]
[366058341,1750039844721,-632.87,0.00016438,2]
[366058342,1750039844731,-2479.85,0.00016438,2]
[366058343,1750039844744,-490.0,0.00016438,2]
[366058344,1750039844753,-536.38,0.00016438,2]
[366058345,1750039844763,-501.88129606,0.00016438,2]
[366058346,1750039844772,-329.24805806,0.00016438,2]
[366058347,1750039844783,-672.16,0.00016438,2]
[366058348,1750039844794,-490.0,0.00016438,2]
[366058349,1750039844803,-2078.02,0.00016438,2]
[366058350,1750039844814,-491.1044232,0.00016438,2]
[366058351,1750039844824,-609.74,0.00016438,2]
[366058352,1750039844834,-490.0,0.00016438,2]
[366058353,1750039844843,-490.0,0.00016438,2]
[366058354,1750039844853,-492.86861285,0.00016438,2]
[366058355,1750039844862,-492.31713965,0.00016438,2]
[366058356,1750039844871,-445.16130508,0.00016438,2]
[366058357,1750039844881,-490.0,0.00016438,2]
[366058358,1750039844892,-941.78,0.00016438,2]
[366058359,1750039844902,-740.24,0.00016438,2]
[366058360,1750039844911,-1000.0,0.00016438,2]
[366058361,1750039844921,-495.67642567,0.00016438,2]
[366058362,1750039844930,-490.0,0.00016438,2]
[366058363,1750039844939,-776.42,0.00016438,2]
[366058364,1750039844948,-490.0,0.00016438,2]
[366058365,1750039844958,-961.98,0.00016438,2]
[366058366,1750039844967,-1674.6,0.00016438,2]
[366058367,1750039844977,-1666.14,0.00016438,2]
[366058368,1750039844986,-492.34736973,0.00016438,2]
[366058369,1750039844995,-490.0,0.00016438,2]
[366058370,1750039845005,-464.00078561,0.00016438,2]
[366058371,1750039845015,-559.46,0.00016438,2]
[366058372,1750039845024,-490.0,0.00016438,2]
[366058373,1750039845033,-490.0,0.00016438,2]
[366058374,1750039845043,-1846.27,0.00016438,2]
[366058375,1750039845053,-490.0,0.00016438,2]
[366058376,1750039845062,-490.0,0.00016438,2]
[366058377,1750039845071,-852.73,0.00016438,2]
[366058378,1750039845080,-1501.3,0.00016438,2]
[366058379,1750039845091,-490.43602751,0.00016438,2]
[366058380,1750039845100,-490.0,0.00016438,2]
[366058381,1750039845109,-725.84,0.00016438,2]
[366058382,1750039845118,-2243.28,0.00016438,2]
[366058383,1750039845127,-490.0,0.00016438,2]
[366058384,1750039845137,-490.0,0.00016438,2]
[366058385,1750039845146,-490.0,0.00016438,2]
[366058386,1750039845155,-490.0,0.00016438,2]
[366058387,1750039845164,-489.45315941,0.00016438,2]
[366058388,1750039845173,-494.58236387,0.00016438,2]
[366058389,1750039845183,-1664.02,0.00016438,2]
[366058390,1750039845194,-714.51,0.00016438,2]
[366058391,1750039845203,-490.0,0.00016438,2]
[366058392,1750039845212,-1537.38,0.00016438,2]
[366058393,1750039845222,-572.18,0.00016438,2]
[366058394,1750039845231,-473.14624847,0.00016438,2]
[366058395,1750039845242,-490.0,0.00016438,2]
[366058396,1750039845251,-902.88,0.00016438,2]
[366058397,1750039845261,-490.0,0.00016438,2]
[366058398,1750039845270,-490.0,0.00016438,2]
[366058399,1750039845280,-490.0,0.00016438,2]
[366058400,1750039845290,-1269.33,0.00016438,2]
[366058401,1750039845300,-490.0,0.00016438,2]
[366058402,1750039845309,-490.0,0.00016438,2]
[366058403,1750039845319,-490.0,0.00016438,2]
[366058404,1750039845328,-501.5884093,0.00016438,2]
[366058405,1750039845337,-1142.69,0.00016438,2]
[366058406,1750039845347,-505.38804211,0.00016438,2]
[366058407,1750039845356,-1230.0,0.00016438,2]
[366058408,1750039845366,-671.42,0.00016438,2]
[366058409,1750039845375,-490.0,0.00016438,2]
[366058410,1750039845385,-490.0,0.00016438,2]
[366058411,1750039845394,-494.00947969,0.00016438,2]
[366058412,1750039845403,-1736.27,0.00016438,2]
[366058413,1750039845412,-3869.87,0.00016438,2]
[366058414,1750039845421,-540.58,0.00016438,2]
[366058415,1750039845431,-490.0,0.00016438,2]
[366058416,1750039845440,-448.78937037,0.00016438,2]
[366058417,1750039845449,-1576.9,0.00016438,2]
[366058418,1750039845459,-1154.42,0.00016438,2]
[366058419,1750039845467,-2040.55,0.00016438,2]
[366058420,1750039845477,-796.69,0.00016438,2]
[366058421,1750039845486,-4053.37,0.00016438,2]
[366058422,1750039845495,-490.0,0.00016438,2]
[366058423,1750039845504,-490.0,0.00016438,2]
[366058424,1750039845513,-634.85765055,0.00016438,2]
[366058425,1750039845523,-490.0,0.00016438,2]
[366058426,1750039845532,-611.77,0.00016438,2]
[366058428,1750039845543,-490.0,0.00016438,2]
[366058430,1750039845552,-490.0,0.00016438,2]
[366058432,1750039845561,-631.5,0.00016438,2]
[366058434,1750039845570,-492.69174202,0.00016438,2]
[366058436,1750039845579,-499.4664432,0.00016438,2]
[366058438,1750039845588,-2008.32,0.00016438,2]
[366058440,1750039845597,-1612.4,0.00016438,2]
[366058442,1750039845606,-1023.3,0.00016438,2]
[366058444,1750039845617,-546.28,0.00016438,2]
[366058446,1750039845626,-490.0,0.00016438,2]
[366058448,1750039845637,-496.37695765,0.00016438,2]
[366058450,1750039845647,-590.49,0.00016438,2]
[366058452,1750039845657,-492.12463328,0.00016438,2]
[366058454,1750039845666,-605.56,0.00016438,2]
[366058456,1750039845676,-490.0,0.00016438,2]
[366058458,1750039845685,-4929.94,0.00016438,2]
[366058460,1750039845694,-490.0,0.00016438,2]
[366058462,1750039845704,-523.88,0.00016438,2]
[366058464,1750039845715,-550.77,0.00016438,2]
[366058466,1750039845724,-2355.89,0.00016438,2]
[366058470,1750039845737,-494.76089771,0.00016438,2]
[366058471,1750039845747,-1101.02,0.00016438,2]
[366058472,1750039845757,-1525.15,0.00016438,2]
[366058473,1750039845766,-2337.03,0.00016438,2]
[366058474,1750039845777,-493.33319638,0.00016438,2]
[366058475,1750039845787,-490.0,0.00016438,2]
[366058476,1750039845798,-592.77,0.00016438,2]
[366058477,1750039845808,-490.0,0.00016438,2]
[366058478,1750039845819,-490.0,0.00016438,2]
[366058479,1750039845829,-1433.72,0.00016438,2]
[366058480,1750039845839,-843.51,0.00016438,2]
[366058481,1750039845848,-490.0,0.00016438,2]
[366058482,1750039845857,-1589.99,0.00016438,2]
[366058483,1750039845867,-536.64,0.00016438,2]
[366058484,1750039845877,-2003.91,0.00016438,2]
[366058485,1750039845887,-1970.97,0.00016438,2]
[366058486,1750039845897,-490.0,0.00016438,2]
[366058487,1750039845907,-494.70021302,0.00016438,2]
[366058488,1750039845916,-499.03907359,0.00016438,2]
[366058489,1750039846104,-5885.02,0.00016438,2]
[366058490,1750039846115,-468.68321448,0.00016438,2]
[366058491,1750039846125,-492.56146032,0.00016438,2]
[366058492,1750039846134,-490.0,0.00016438,2]
[366058493,1750039846146,-490.0,0.00016438,2]
[366058494,1750039846155,-2642.13,0.00016438,2]
[366058495,1750039846165,-2140.49,0.00016438,2]
[366058496,1750039846175,-490.0,0.00016438,2]
[366058497,1750039846185,-490.0,0.00016438,2]
[366058498,1750039846194,-497.10639667,0.00016438,2]
[366058499,1750039846204,-1185.37,0.00016438,2]
[366058500,1750039846214,-490.0,0.00016438,2]
[366058501,1750039846224,-668.48,0.00016438,2]
[366058502,1750039846233,-490.0,0.00016438,2]
[366058503,1750039846243,-492.6976837,0.00016438,2]
[366058504,1750039846461,-490.0,0.00016438,2]
[366058505,1750039846471,-2217.26,0.00016438,2]
[366058506,1750039846480,-837.54,0.00016438,2]
[366058507,1750039846490,-878.23,0.00016438,2]
[366058508,1750039846500,-490.0,0.00016438,2]
[366058509,1750039846510,-490.0,0.00016438,2]
[366058510,1750039846521,-450.0,0.00016438,2]
[366058511,1750039846531,-494.88662358,0.00016438,2]
[366058512,1750039846541,-1343.54,0.00016438,2]
[366058513,1750039846550,-491.74115082,0.00016438,2]
[366058514,1750039846560,-730.04,0.00016438,2]
[366058515,1750039846570,-1070.8,0.00016438,2]
[366058516,1750039846580,-490.0,0.00016438,2]
[366058517,1750039846590,-1192.9,0.00016438,2]
[366058518,1750039846600,-622.74887609,0.00016438,2]
[366058519,1750039846609,-3241.99,0.00016438,2]
[366058520,1750039846620,-490.0,0.00016438,2]
[366058521,1750039846630,-498.39157963,0.00016438,2]
[366058522,1750039846640,-2801.91,0.00016438,2]
[366058523,1750039846649,-1876.19,0.00016438,2]
[366058524,1750039846659,-498.84814647,0.00016438,2]
[366058525,1750039846668,-496.05737498,0.00016438,2]
[366058526,1750039846678,-490.0,0.00016438,2]
[366058527,1750039846688,-490.0,0.00016438,2]
[366058528,1750039846698,-1719.96,0.00016438,2]
[366058529,1750039846707,-1037.94,0.00016438,2]
[366058530,1750039846717,-490.0,0.00016438,2]
[366058531,1750039846727,-3487.38,0.00016438,2]
[366058532,1750039846740,-490.0,0.00016438,2]
[366058533,1750039846750,-1172.68,0.00016438,2]
[366058534,1750039846760,-495.3466602,0.00016438,2]
[366058535,1750039846770,-752.48,0.00016438,2]
[366058536,1750039846780,-460.0,0.00016438,2]
[366058537,1750039846791,-490.0,0.00016438,2]
[366058538,1750039846800,-490.95324714,0.00016438,2]
[366058539,1750039846810,-2367.43,0.00016438,2]
[366058540,1750039846821,-3968.73,0.00016438,2]
[366058541,1750039846831,-490.0,0.00016438,2]
[366058542,1750039846841,-1142.68,0.00016438,2]
[366058543,1750039846850,-494.22247669,0.00016438,2]
[366058544,1750039846860,-470.0,0.00016438,2]
[366058545,1750039846870,-490.0,0.00016438,2]
[366058546,1750039846881,-1643.96,0.00016438,2]
[366058547,1750039846891,-495.58396719,0.00016438,2]
[366058548,1750039846900,-634.78,0.00016438,2]